fUST/lending_fUST_20240229
["ID","MTS","AMOUNT","RATE_DAILY","PERIOD"]
[315767272,1709169041078,-329.85887735,0.00019178,2]
[315767274,1709169041088,-500.0,0.00019178,2]
[315767276,1709169041098,-500.0,0.00019178,2]
[315767277,1709169041107,-468.65722539,0.00019178,2]
[315767279,1709169041116,-500.0,0.00019178,2]
[315767281,1709169041126,-726.94,0.00019178,2]
[315767283,1709169041135,-726.94,0.00019178,2]
[315767285,1709169041145,-495.0863917,0.00019178,2]
[315767287,1709169041154,-500.0,0.00019178,2]
[315767289,1709169041164,-500.0,0.00019178,2]
[315767291,1709169041172,-500.0,0.00019178,2]
[315767292,1709169041182,-421.66620567,0.00019178,2]
[315767294,1709169041192,-764.93,0.00019178,2]
[315767296,1709169041202,-500.0,0.00019178,2]
[315767298,1709169041212,-500.0,0.00019178,2]
[315767300,1709169041222,-500.0,0.00019178,2]
[315767302,1709169041231,-370.26,0.00019178,2]
[315767304,1709169041241,-469.72796714,0.00019178,2]
[315767305,1709169041250,-500.0,0.00019178,2]
[315767307,1709169041260,-500.0,0.00019178,2]
[315767309,1709169041269,-230.19847541,0.00019178,2]
[315767311,1709169041279,-500.0,0.00019178,2]
[315767313,1709169041288,-355.60851445,0.00019178,2]
[315767315,1709169041297,-500.0,0.00019178,2]
[315767316,1709169041306,-500.0,0.00019178,2]
[315767318,1709169041315,-500.0,0.00019178,2]
[315767320,1709169041324,-500.0,0.00019178,2]
[315767322,1709169041334,-766.56,0.00019178,2]
[315767324,1709169041344,-500.0,0.00019178,2]
[315767326,1709169041353,-500.0,0.00019178,2]
[315767328,1709169041362,-771.27,0.00019178,2]
[315767329,1709169041371,-500.0,0.00019178,2]
[315767331,1709169041381,-1042.14,0.00019178,2]
[315767333,1709169041391,-500.0,0.00019178,2]
[315767335,1709169041402,-500.0,0.00019178,2]
[315767337,1709169041411,-500.0,0.00019178,2]
[315767339,1709169041422,-5546.17,0.00019178,2]
[315767341,1709169041431,-411.27876987,0.00019178,2]
[315767343,1709169041443,-443.78647685,0.00019178,2]
[315767344,1709169041452,-500.0,0.00019178,2]
[315767345,1709169041461,-720.88,0.00019178,2]
[315767346,1709169041471,-500.0,0.00019178,2]
[315767347,1709169041480,-3450.68,0.00019178,2]
[315767348,1709169041489,-500.0,0.00019178,2]
[315767349,1709169041499,-5571.64,0.00019178,2]
[315767350,1709169041508,-1238.19,0.00019178,2]
[315767351,1709169041517,-500.0,0.00019178,2]
[315767352,1709169041526,-500.0,0.00019178,2]
[315767353,1709169041535,-500.0,0.00019178,2]
[315767354,1709169041544,-500.0,0.00019178,2]
[315767355,1709169041554,-2134.37,0.00019178,2]
[315767356,1709169041563,-500.0,0.00019178,2]
[315767357,1709169041572,-746.55,0.00019178,2]
[315767358,1709169041581,-500.0,0.00019178,2]
[315767359,1709169041590,-114.41139455,0.00019178,2]
[315767360,1709169041605,-385.58860545,0.00019178,2]
[315767361,1709169041614,-821.87,0.00019178,2]
[315767362,1709169041624,-541.7,0.00019178,2]
[315767363,1709169041633,-568.07769231,0.00019178,2]
[315767364,1709169041644,-500.0,0.00019178,2]
[315767365,1709169041653,-500.0,0.00019178,2]
[315767366,1709169041662,-212.89316233,0.00019178,2]
[315767367,1709169041681,-162.30463779,0.00019178,2]
[315767368,1709169041692,-500.0,0.00019178,2]
[315767369,1709169041702,-671.01,0.00019178,2]
[315767370,1709169041710,-155.0,0.00019178,2]
[315767371,1709169041719,-500.0,0.00019178,2]
[315767372,1709169041728,-871.45,0.00019178,2]
[315767373,1709169041738,-500.0,0.00019178,2]
[315767374,1709169041747,-500.0,0.00019178,2]
[315767375,1709169041756,-500.0,0.00019178,2]
[315767376,1709169041766,-172.303321,0.00019178,2]
[315767377,1709169041775,-166.666666,0.00019178,2]
[315767378,1709169041784,-580.0,0.000192,2]
[315767379,1709169041793,-726.94,0.00019451,2]
[315767380,1709169041802,-726.94,0.00019451,2]
[315767381,1709169041812,-581.16057071,0.00019452,2]
[315767382,1709169041822,-500.0,0.00019452,2]
[315767383,1709169041831,-500.0,0.00019452,2]
[315767384,1709169041840,-500.0,0.00019452,2]
[315767385,1709169041850,-500.0,0.00019452,2]
[315767386,1709169041859,-500.0,0.00019452,2]
[315767387,1709169041870,-500.0,0.00019452,2]
[315767388,1709169041880,-500.0,0.00019452,2]
[315767390,1709169041889,-764.93,0.00019452,2]
[315767391,1709169041899,-500.0,0.00019452,2]
[315767392,1709169041909,-500.0,0.00019452,2]
[315767393,1709169041919,-500.0,0.00019452,2]
[315767395,1709169041928,-300.50902,0.00019452,2]
[315767396,1709169041937,-500.0,0.00019452,2]
[315767398,1709169041948,-151.0,0.00019452,2]
[315767399,1709169041957,-500.0,0.00019452,2]
[315767401,1709169041966,-500.0,0.00019452,2]
[315767403,1709169041976,-500.0,0.00019452,2]
[315767405,1709169041985,-500.0,0.00019452,2]
[315767407,1709169041995,-766.56,0.00019452,2]
[315767410,1709169042007,-500.0,0.00019452,2]
[315767412,1709169042019,-500.0,0.00019452,2]
[315767414,1709169042031,-771.27,0.00019452,2]
[315767416,1709169042043,-358.72472899,0.00019452,2]
[315767419,1709169042055,-1042.14,0.00019452,2]
[315767421,1709169042066,-500.0,0.00019452,2]
[315767423,1709169042077,-5546.17,0.00019452,2]
[315767425,1709169042086,-151.0,0.00019452,2]
[315767427,1709169042096,-720.88,0.00019452,2]
[315767429,1709169042106,-3450.68,0.00019452,2]
[315767432,1709169042117,-2147.66185431,0.00019452,2]
[315767533,1709169042957,-3423.97814569,0.00019452,2]
[315767535,1709169042970,-1238.19,0.00019452,2]
[315767537,1709169042981,-500.0,0.00019452,2]
[315767539,1709169042992,-500.0,0.00019452,2]
[315767542,1709169043004,-271.67614109,0.00019452,2]
[315767544,1709169043018,-228.32385891,0.00019452,2]
[315767546,1709169043029,-500.0,0.00019452,2]
[315767549,1709169043040,-2134.37,0.00019452,2]
[315767552,1709169043052,-500.0,0.00019452,2]
[315767554,1709169043063,-746.55,0.00019452,2]
[315767556,1709169043073,-500.0,0.00019452,2]
[315767558,1709169043083,-500.0,0.00019452,2]
[315767560,1709169043093,-821.87,0.00019452,2]
[315767562,1709169043104,-541.7,0.00019452,2]
[315767564,1709169043114,-500.0,0.00019452,2]
[315767566,1709169043126,-500.0,0.00019452,2]
[315767569,1709169043138,-500.0,0.00019452,2]
[315767571,1709169043149,-671.01,0.00019452,2]
[315767573,1709169043159,-500.0,0.00019452,2]
[315767576,1709169043169,-871.45,0.00019452,2]
[315767578,1709169043180,-500.0,0.00019452,2]
[315767580,1709169043193,-500.0,0.00019452,2]
[315767583,1709169043203,-500.0,0.00019452,2]
[315767585,1709169043214,-8188.27318062,0.0001949,2]
[315767587,1709169043230,-43.75117557,0.0001949,2]
[315767590,1709169043241,-217.056568,0.0001949,2]
[315767592,1709169043252,-278.845772,0.0001949,2]
[315767594,1709169043262,-153.0,0.000195,2]
[315767596,1709169043271,-153.0,0.000195,2]
[315767598,1709169043281,-153.0,0.000195,2]
[315767600,1709169043291,-261.0,0.000196,2]
[315767602,1709169043303,-166.666666,0.00019627,2]
[315767605,1709169043314,-3455.29430314,0.00019637,2]
[315767607,1709169043326,-1000.0,0.0001967,2]
[315767609,1709169043336,-873.6037,0.000197,2]
[315767611,1709169043348,-1000.12798802,0.00019725,2]
[315767613,1709169043360,-726.94,0.00019725,2]
[315767616,1709169043370,-500.0,0.00019726,2]
[315767618,1709169043381,-500.0,0.00019726,2]
[315767620,1709169043391,-500.0,0.00019726,2]
[315767622,1709169043401,-296.94313576,0.00019726,2]
[315767624,1709169043415,-315.48686424,0.00019726,2]
[315767627,1709169043426,-764.93,0.00019726,2]
[315767629,1709169043437,-500.0,0.00019726,2]
[315767631,1709169043450,-500.0,0.00019726,2]
[315767633,1709169043461,-500.0,0.00019726,2]
[315767635,1709169043471,-500.0,0.00019726,2]
[315767637,1709169043483,-500.0,0.00019726,2]
[315767640,1709169043495,-500.0,0.00019726,2]
[315767642,1709169043507,-766.56,0.00019726,2]
[315767644,1709169043518,-500.0,0.00019726,2]
[315767646,1709169043531,-771.27,0.00019726,2]
[315767649,1709169043545,-1042.14,0.00019726,2]
[315767651,1709169043556,-159.62,0.00019726,2]
[315767653,1709169043568,-5546.17,0.00019726,2]
[315767655,1709169043579,-720.88,0.00019726,2]
[315767657,1709169043591,-3450.68,0.00019726,2]
[315767659,1709169043602,-5571.64,0.00019726,2]
[315767662,1709169043612,-1238.19,0.00019726,2]
[315767664,1709169043622,-500.0,0.00019726,2]
[315767666,1709169043632,-500.0,0.00019726,2]
[315767668,1709169043643,-277.94,0.00019726,2]
[315767670,1709169043654,-2134.37,0.00019726,2]
[315767672,1709169043664,-500.0,0.00019726,2]
[315767674,1709169043675,-746.55,0.00019726,2]
[315767676,1709169043690,-500.0,0.00019726,2]
[315767678,1709169043703,-500.0,0.00019726,2]
[315767680,1709169043713,-821.87,0.00019726,2]
[315767682,1709169043724,-541.7,0.00019726,2]
[315767685,1709169043735,-500.0,0.00019726,2]
[315767687,1709169043746,-406.93546264,0.00019726,2]
[315767689,1709169043757,-671.01,0.00019726,2]
[315767691,1709169043768,-500.0,0.00019726,2]
[315767693,1709169043778,-871.45,0.00019726,2]
[315767695,1709169043788,-500.0,0.00019726,2]
[315767698,1709169043797,-500.0,0.00019726,2]
[315767700,1709169043807,-500.0,0.00019726,2]
[315767702,1709169043817,-1000.0,0.00019889,2]
[315767704,1709169043826,-3376.47790038,0.00019956,2]
[315767706,1709169043836,-1519.65346876,0.0001997,2]
[315767708,1709169043850,-726.94,0.00019992,2]
[315767710,1709169043862,-726.94,0.00019999,2]
[315767713,1709169043872,-726.94,0.00019999,2]
[315767715,1709169043882,-726.94,0.00019999,2]
[315767717,1709169043891,-726.94,0.00019999,2]
[315767719,1709169043901,-204.14203695,0.00019999,2]
[315767721,1709169043913,-500.0,0.00019999,2]
[315767723,1709169043923,-500.0,0.00019999,2]
[315767725,1709169043934,-500.0,0.00019999,2]
[315767727,1709169043944,-500.0,0.00019999,2]
[315767729,1709169043954,-500.0,0.00019999,2]
[315767731,1709169043964,-500.0,0.00019999,2]
[315767733,1709169043974,-500.0,0.00019999,2]
[315767736,1709169043984,-500.0,0.00019999,2]
[315767738,1709169043995,-500.0,0.00019999,2]
[315767740,1709169044005,-500.0,0.00019999,2]
[315767742,1709169044016,-500.0,0.00019999,2]
[315767744,1709169044026,-500.0,0.00019999,2]
[315767746,1709169044036,-455.32641781,0.00019999,2]
[315767748,1709169044047,-500.0,0.00019999,2]
[315767750,1709169044057,-500.0,0.00019999,2]
[315767753,1709169044067,-500.0,0.00019999,2]
[315767755,1709169044079,-500.0,0.00019999,2]
[315767757,1709169044088,-500.0,0.00019999,2]
[315767759,1709169044098,-500.0,0.00019999,2]
[315767761,1709169044109,-500.0,0.00019999,2]
[315767763,1709169044119,-500.0,0.00019999,2]
[315767765,1709169044128,-489.71431852,0.00019999,2]
[315767767,1709169044139,-500.0,0.00019999,2]
[315767769,1709169044149,-500.0,0.00019999,2]
[315767771,1709169044159,-500.0,0.00019999,2]
[315767774,1709169044169,-500.0,0.00019999,2]
[315767776,1709169044179,-500.0,0.00019999,2]
[315767778,1709169044189,-500.0,0.00019999,2]
[315767780,1709169044201,-500.0,0.00019999,2]
[315767782,1709169044211,-500.0,0.00019999,2]
[315767784,1709169044221,-500.0,0.00019999,2]
[315767786,1709169044231,-259.15612165,0.00019999,2]
[315767788,1709169044242,-500.0,0.00019999,2]
[315767791,1709169044252,-500.0,0.00019999,2]
[315767806,1709169044375,-500.0,0.00019999,2]
[315767808,1709169044393,-500.0,0.00019999,2]
[315767811,1709169044402,-500.0,0.00019999,2]
[315767812,1709169044411,-500.0,0.00019999,2]
[315767814,1709169044421,-500.0,0.00019999,2]
[315767816,1709169044430,-500.0,0.00019999,2]
[315767818,1709169044439,-500.0,0.00019999,2]
[315767820,1709169044450,-500.0,0.00019999,2]
[315767822,1709169044459,-500.0,0.00019999,2]
[315767824,1709169044468,-211.48094765,0.00019999,2]
[315767826,1709169044477,-500.0,0.00019999,2]
[315767828,1709169044486,-500.0,0.00019999,2]
[315767830,1709169044495,-500.0,0.00019999,2]
[315767832,1709169044504,-500.0,0.00019999,2]
[315767834,1709169044513,-500.0,0.00019999,2]
[315767836,1709169044522,-500.0,0.00019999,2]
[315767838,1709169044532,-500.0,0.00019999,2]
[315767840,1709169044541,-500.0,0.00019999,2]
[315767842,1709169044550,-500.0,0.00019999,2]
[315767844,1709169044560,-500.0,0.00019999,2]
[315767846,1709169044569,-500.0,0.00019999,2]
[315767848,1709169044578,-357.36746168,0.00019999,2]
[315767850,1709169044587,-500.0,0.00019999,2]
[315767852,1709169044597,-500.0,0.00019999,2]
[315767855,1709169044610,-541.76251437,0.00019999,2]
[315767856,1709169044619,-500.0,0.00019999,2]
[315767858,1709169044628,-500.0,0.00019999,2]
[315767860,1709169044637,-500.0,0.00019999,2]
[315767862,1709169044646,-183.91534797,0.00019999,2]
[315767864,1709169044655,-500.0,0.00019999,2]
[315767866,1709169044664,-500.0,0.00019999,2]
[315767868,1709169044674,-500.0,0.00019999,2]
[315767870,1709169044683,-500.0,0.00019999,2]
[315767872,1709169044695,-250.0,0.00019999,2]
[315767874,1709169044704,-159.39465521,0.0002,2]
[315767876,1709169044713,-247.19957144,0.0002,2]
[315767878,1709169044722,-2724.67193441,0.0002,2]
[315767880,1709169044731,-323.67,0.0002,2]
[315767883,1709169044741,-2003.14643251,0.0002,2]
[315767885,1709169044750,-1257.52826053,0.0002,2]
[315767887,1709169044759,-29340.0,0.0002,2]
[315767889,1709169044769,-3449.97981065,0.0002,2]
[315767892,1709169044790,-1115.42130348,0.0002,2]
[315767894,1709169044801,-5520.31508126,0.0002,2]
[315768011,1709169046136,-598.30034209,0.0002,2]
[315773431,1709169401038,460.0,0.00025,120]
[315773475,1709170235495,-258.515138,0.00018366,2]
[315773477,1709170235505,-183.90433986,0.00019,2]
[315773480,1709170235516,-1157.42257443,0.00019177,2]
[315773483,1709170235536,-10272.53903661,0.00019177,2]
[315773485,1709170235548,-2081.67351847,0.00019177,2]
[315773487,1709170235557,-500.0,0.00019178,2]
[315773489,1709170235567,-500.0,0.00019178,2]
[315773491,1709170235576,-500.0,0.00019178,2]
[315773492,1709170235585,-500.0,0.00019178,2]
[315773494,1709170235594,-500.0,0.00019178,2]
[315773496,1709170235605,-500.0,0.00019178,2]
[315773498,1709170235614,-500.0,0.00019178,2]
[315773500,1709170235624,-405.80118565,0.00019178,2]
[315773502,1709170235634,-500.0,0.00019178,2]
[315773504,1709170235643,-198.50832131,0.00019178,2]
[315773560,1709170238214,-301.49167869,0.00019178,2]
[315773561,1709170238224,-500.0,0.00019178,2]
[315773562,1709170238233,-501.25122817,0.00019178,2]
[315773564,1709170238243,-500.0,0.00019178,2]
[315773566,1709170238252,-500.42242112,0.00019178,2]
[315773567,1709170238262,-500.0,0.00019178,2]
[315773569,1709170238271,-500.0,0.00019178,2]
[315773571,1709170238281,-552.01,0.00019178,2]
[315773573,1709170238290,-500.0,0.00019178,2]
[315773575,1709170238298,-93.94467198,0.00019178,2]
[315773577,1709170238310,-406.05532802,0.00019178,2]
[315773579,1709170238319,-686.42776423,0.00019178,2]
[315773581,1709170238331,-76.08223577,0.00019178,2]
[315773583,1709170238340,-444.25776423,0.00019178,2]
[315774038,1709170243205,-55.74223577,0.00019178,2]
[315774040,1709170243215,-500.0,0.00019178,2]
[315774042,1709170243225,-509.62583616,0.00019178,2]
[315774044,1709170243235,-330.55025172,0.00019178,2]
[315774046,1709170243244,-572.41,0.00019178,2]
[315774048,1709170243254,-500.91261695,0.00019178,2]
[315774050,1709170243263,-500.0,0.00019178,2]
[315774052,1709170243272,-614.03231029,0.00019178,2]
[315774054,1709170243281,-500.0,0.00019178,2]
[315774056,1709170243290,-500.0,0.00019178,2]
[315774058,1709170243299,-266.62057173,0.00019178,2]
[315774060,1709170243308,-500.0,0.00019178,2]
[315774062,1709170243317,-500.0,0.00019178,2]
[315774065,1709170243326,-500.0,0.00019178,2]
[315774068,1709170243335,-74.44923634,0.00019178,2]
[315774070,1709170243346,-425.55076366,0.00019178,2]
[315774072,1709170243355,-907.39,0.00019178,2]
[315774074,1709170243364,-500.0,0.00019178,2]
[315774076,1709170243374,-500.0,0.00019178,2]
[315774078,1709170243383,-500.0,0.00019178,2]
[315774080,1709170243393,-500.0,0.00019178,2]
[315774082,1709170243401,-436.38596595,0.00019178,2]
[315774084,1709170243410,-500.829993,0.00019178,2]
[315774086,1709170243420,-500.0,0.00019178,2]
[315774088,1709170243430,-418.60557708,0.00019178,2]
[315774090,1709170243439,-500.0,0.00019178,2]
[315774092,1709170243448,-500.0,0.00019178,2]
[315774094,1709170243456,-500.0,0.00019178,2]
[315774096,1709170243465,-500.0,0.00019178,2]
[315774098,1709170243473,-647.706,0.00019178,2]
[315774100,1709170243482,-500.0,0.00019178,2]
[315774102,1709170243491,-190.40900166,0.00019178,2]
[315774104,1709170243499,-500.0,0.00019178,2]
[315774106,1709170243508,-670.74,0.00019178,2]
[315774108,1709170243517,-618.57371818,0.00019178,2]
[315774111,1709170243526,-911.88,0.00019178,2]
[315774113,1709170243535,-500.0,0.00019178,2]
[315774115,1709170243543,-500.0,0.00019178,2]
[315774117,1709170243552,-500.0,0.00019178,2]
[315774119,1709170243561,-674.87,0.00019178,2]
[315774121,1709170243570,-500.0,0.00019178,2]
[315774123,1709170243579,-500.0,0.00019178,2]
[315774125,1709170243587,-630.77,0.00019178,2]
[315774127,1709170243596,-3019.34,0.00019178,2]
[315774129,1709170243605,-4852.9,0.00019178,2]
[315774131,1709170243613,-500.0,0.00019178,2]
[315774133,1709170243622,-1083.41,0.00019178,2]
[315774135,1709170243631,-4875.18,0.00019178,2]
[315774137,1709170243639,-500.0,0.00019178,2]
[315774139,1709170243647,-411.3,0.00019178,2]
[315774140,1709170243654,-1867.57,0.00019178,2]
[315774142,1709170243663,-500.0,0.00019178,2]
[315774144,1709170243674,-432.44409481,0.00019178,2]
[315774146,1709170243683,-719.14,0.00019178,2]
[315774149,1709170243693,-653.23,0.00019178,2]
[315774151,1709170243703,-500.0,0.00019178,2]
[315774153,1709170243712,-500.0,0.00019178,2]
[315774155,1709170243721,-500.0,0.00019178,2]
[315774157,1709170243730,-168.3862138,0.00019178,2]
[315774159,1709170243739,-588.05,0.00019178,2]
[315774160,1709170243748,-166.666666,0.00019178,2]
[315774162,1709170243758,-15218.0,0.00019422,3]
[315774164,1709170243767,-12681.66,0.00019422,3]
[315774167,1709170243776,-18261.59,0.00019432,3]
[315774168,1709170243785,-572.41,0.00019441,2]
[315774170,1709170243794,-21913.91,0.00019442,3]
[315774172,1709170243803,-572.41,0.00019451,2]
[315774174,1709170243813,-500.0,0.00019452,2]
[315774177,1709170243823,-500.0,0.00019452,2]
[315774179,1709170243832,-762.51,0.00019452,2]
[315774181,1709170243842,-501.79239034,0.00019452,2]
[315774182,1709170243852,-500.0,0.00019452,2]
[315774184,1709170243861,-907.39,0.00019452,2]
[315774187,1709170243871,-500.0,0.00019452,2]
[315774189,1709170243881,-500.0,0.00019452,2]
[315774191,1709170243890,-500.0,0.00019452,2]
[315774193,1709170243900,-445.15151482,0.00019452,2]
[315774195,1709170243909,-670.74,0.00019452,2]
[315774197,1709170243919,-911.88,0.00019452,2]
[315774199,1709170243930,-500.0,0.00019452,2]
[315774201,1709170243940,-674.87,0.00019452,2]
[315774202,1709170243953,-500.0,0.00019452,2]
[315774204,1709170243970,-630.77,0.00019452,2]
[315774206,1709170243981,-3019.34,0.00019452,2]
[315774208,1709170243990,-4852.9,0.00019452,2]
[315774210,1709170244001,-500.0,0.00019452,2]
[315774212,1709170244011,-1083.41,0.00019452,2]
[315774214,1709170244020,-4875.18,0.00019452,2]
[315774216,1709170244030,-500.0,0.00019452,2]
[315774218,1709170244039,-1867.57,0.00019452,2]
[315774220,1709170244050,-500.0,0.00019452,2]
[315774222,1709170244059,-719.14,0.00019452,2]
[315774224,1709170244070,-653.23,0.00019452,2]
[315774226,1709170244079,-500.0,0.00019452,2]
[315774228,1709170244088,-588.05,0.00019452,2]
[315774230,1709170244097,-8232.02435619,0.0001949,2]
[315774232,1709170244107,-874.0,0.000195,2]
[315774234,1709170244117,-1000.0,0.00019658,2]
[315774236,1709170244126,-196.52513499,0.00019725,2]
[315774238,1709170244142,-375.88486501,0.00019725,2]
[315774251,1709170244251,-500.0,0.00019726,2]
[315774253,1709170244261,-500.0,0.00019726,2]
[315774255,1709170244271,-762.51,0.00019726,2]
[315774257,1709170244281,-500.0,0.00019726,2]
[315774259,1709170244291,-907.39,0.00019726,2]
[315774261,1709170244301,-500.0,0.00019726,2]
[315774263,1709170244311,-500.0,0.00019726,2]
[315774265,1709170244320,-500.0,0.00019726,2]
[315774267,1709170244330,-670.74,0.00019726,2]
[315774269,1709170244339,-911.88,0.00019726,2]
[315774271,1709170244348,-383.4070037,0.00019726,2]
[315774273,1709170244358,-674.87,0.00019726,2]
[315774275,1709170244367,-500.0,0.00019726,2]
[315774277,1709170244376,-630.77,0.00019726,2]
[315774279,1709170244386,-1182.56058992,0.00019726,2]
[315774281,1709170244398,-1836.77941008,0.00019726,2]
[315774283,1709170244407,-4852.9,0.00019726,2]
[315774285,1709170244417,-500.0,0.00019726,2]
[315774287,1709170244428,-1083.41,0.00019726,2]
[315774289,1709170244437,-1148.71058992,0.00019726,2]
[315774478,1709170246338,-151.61825193,0.00019082,2]
[315774479,1709170246348,-3726.46941008,0.00019726,2]
[315774481,1709170246358,-500.0,0.00019726,2]
[315774483,1709170246368,-1867.57,0.00019726,2]
[315774485,1709170246377,-500.0,0.00019726,2]
[315774487,1709170246387,-719.14,0.00019726,2]
[315774489,1709170246396,-653.23,0.00019726,2]
[315774491,1709170246406,-500.0,0.00019726,2]
[315774493,1709170246415,-588.05,0.00019726,2]
[315774495,1709170246428,-166.666666,0.00019739,2]
[315774497,1709170246438,-333.791791,0.000198,2]
[315774499,1709170246447,-1000.0,0.00019905,2]
[315774501,1709170246456,-151.0,0.00019914,2]
[315774503,1709170246465,-572.41,0.00019998,2]
[315774505,1709170246474,-572.41,0.00019999,2]
[315774507,1709170246483,-572.41,0.00019999,2]
[315774509,1709170246492,-572.41,0.00019999,2]
[315774511,1709170246501,-572.41,0.00019999,2]
[315774513,1709170246510,-369.80036347,0.00019999,2]
[315774514,1709170246520,-500.0,0.00019999,2]
[315774516,1709170246529,-500.0,0.00019999,2]
[315774518,1709170246538,-500.0,0.00019999,2]
[315774520,1709170246547,-500.0,0.00019999,2]
[315774522,1709170246556,-500.0,0.00019999,2]
[315774524,1709170246565,-500.0,0.00019999,2]
[315774526,1709170246574,-202.12727289,0.00019999,2]
[315774528,1709170246583,-500.0,0.00019999,2]
[315774530,1709170246591,-500.0,0.00019999,2]
[315774532,1709170246600,-500.0,0.00019999,2]
[315774534,1709170246609,-289.76043384,0.00019999,2]
[315774536,1709170246618,-500.0,0.00019999,2]
[315774538,1709170246627,-500.0,0.00019999,2]
[315774540,1709170246636,-500.0,0.00019999,2]
[315774542,1709170246645,-500.0,0.00019999,2]
[315774544,1709170246654,-503.62761586,0.00019999,2]
[315774546,1709170246663,-500.0,0.00019999,2]
[315774547,1709170246671,-500.0,0.00019999,2]
[315774549,1709170246683,-500.0,0.00019999,2]
[315774551,1709170246693,-500.0,0.00019999,2]
[315774553,1709170246702,-500.0,0.00019999,2]
[315774555,1709170246711,-500.0,0.00019999,2]
[315774557,1709170246720,-500.0,0.00019999,2]
[315774559,1709170246729,-500.0,0.00019999,2]
[315774561,1709170246737,-500.0,0.00019999,2]
[315774563,1709170246747,-348.80590865,0.00019999,2]
[315774565,1709170246755,-500.0,0.00019999,2]
[315774567,1709170246764,-500.0,0.00019999,2]
[315774569,1709170246773,-500.0,0.00019999,2]
[315774571,1709170246782,-500.0,0.00019999,2]
[315774573,1709170246790,-500.0,0.00019999,2]
[315774575,1709170246799,-500.0,0.00019999,2]
[315774577,1709170246808,-500.0,0.00019999,2]
[315774579,1709170246817,-500.0,0.00019999,2]
[315774581,1709170246826,-500.0,0.00019999,2]
[315774583,1709170246834,-500.0,0.00019999,2]
[315774585,1709170246845,-500.0,0.00019999,2]
[315774586,1709170246854,-341.36852697,0.00019999,2]
[315774588,1709170246863,-500.0,0.00019999,2]
[315774590,1709170246872,-162.0473936,0.00019999,2]
[315774592,1709170246881,-500.0,0.00019999,2]
[315774594,1709170246889,-442.84176588,0.00019999,2]
[315774596,1709170246900,-500.0,0.00019999,2]
[315774598,1709170246910,-500.0,0.00019999,2]
[315774600,1709170246919,-500.0,0.00019999,2]
[315774602,1709170246930,-500.0,0.00019999,2]
[315774604,1709170246939,-500.0,0.00019999,2]
[315774606,1709170246949,-500.0,0.00019999,2]
[315774608,1709170246959,-500.0,0.00019999,2]
[315774610,1709170246968,-500.0,0.00019999,2]
[315774612,1709170246977,-500.0,0.00019999,2]
[315774614,1709170246986,-500.0,0.00019999,2]
[315774616,1709170246999,-500.0,0.00019999,2]
[315774618,1709170247008,-500.0,0.00019999,2]
[315774620,1709170247017,-500.0,0.00019999,2]
[315774622,1709170247027,-500.0,0.00019999,2]
[315774624,1709170247036,-500.0,0.00019999,2]
[315774626,1709170247046,-500.0,0.00019999,2]
[315774627,1709170247058,-500.0,0.00019999,2]